Cogmind - Beta 13 @@@ ROGUE MODE // 2024.03.30 @ 22:41:58 Player: Isopropylpod Result: Self-destructed Performance ------------- Evolutions (2) 1000 Regions Visited (4) 800 Robots Destroyed (29) 145 Value Destroyed (813) 813 Prototype IDs (5) 100 Alien Tech Used (0) 0 Bonus (16) 16 TOTAL SCORE: 2874 Bonus ------- High Alert Combat Kills 16 Cogmind --------- Core Integrity 409/550 Matter 300/300 Energy 100/100 System Corruption 0% Temperature Cool (23) Movement Walking (120) Location -8/Materials Parts ------- > --- POWER (1) -------- (None) > --- PROPULSION (4) --- Aluminum Leg > --- UTILITY (4) ------ Small Storage Unit Signal Interpreter > --- WEAPON (2) ------- (None) > --- INVENTORY (8) ---- Ion Engine Ion Engine Aluminum Leg Aluminum Leg Heat Sink Signal Interpreter Improved Targeting Computer Peak State ------------ > --- POWER ------------ Light Nuclear Core > --- PROPULSION ------- Aluminum Leg Aluminum Leg Aluminum Leg > --- UTILITY ---------- Small Storage Unit Sensor Array Signal Interpreter > --- WEAPON ----------- Beam Cannon Advanced Beam Cannon > --- INVENTORY -------- Ion Engine Ion Engine Aluminum Leg Sensor Array Signal Interpreter Weapon Shielding Assault Rifle Light Assault Rifle [Rating: 13] Favorites ----------- Power Light Nuclear Core Engine Ion Engine Power Core Light Nuclear Core Propulsion Aluminum Leg Leg Aluminum Leg Utility Small Storage Unit Device Sensor Array Storage Small Storage Unit Processor Signal Interpreter Protection Light Armor Plating Weapon Assault Rifle Energy Gun Small Laser Energy Cannon Beam Cannon Ballistic Gun Assault Rifle Special Melee Weapon Datajack Build | -11 -10 -9 -9 -8 ------- Run | Yrd Mat Mat Sto Mat Slots Evolved 4 | . . 2 . 2 Power . | . . . . . Propulsion 2 | . . 1 . 1 Utility 2 | . . 1 . 1 Weapon . | . . . . . Parts Attached 34 | 6 8 7 12 1 Power 5 | 1 1 1 2 . Engine 3 | 1 . . 2 . Core 2 | . 1 1 . . Reactor . | . . . . . Propulsion 11 | 2 1 2 5 1 Treads . | . . . . . Leg 11 | 2 1 2 5 1 Wheel . | . . . . . Hover . | . . . . . Flight . | . . . . . Utility 6 | 1 1 2 2 . Device 2 | . 1 1 . . Storage 1 | 1 . . . . Processor 1 | . . 1 . . Hackware . | . . . . . Protection 2 | . . . 2 . Artifact . | . . . . . Weapon 12 | 2 5 2 3 . Energy Gun 2 | . 1 . 1 . Energy Cannon 2 | . 1 1 . . Ballistic Gun 7 | 2 3 1 1 . Ballistic Cannon . | . . . . . Launcher . | . . . . . Special Weapon . | . . . . . Impact Weapon . | . . . . . Slashing Weapon . | . . . . . Piercing Weapon . | . . . . . Special Melee Weapon 1 | . . . 1 . Unidentified Prototypes 1 | . . 1 . . Parts Lost 11 | . 1 . 4 6 Power 2 | . . . 1 1 Propulsion 3 | . . . . 3 Utility 2 | . . . 1 1 Weapon 4 | . 1 . 2 1 Highest Loss Streak 6 | . 1 . 1 6 To Critical Strikes . | . . . . . Average Slot Usage (%) 97 | . 98 98 98 75 Engine 3 | . 3 . 3 9 Core 8 | . 10 9 7 . Leg 31 | . 28 33 33 33 Device 7 | . 13 11 3 . Storage 11 | . 14 11 11 9 Processor 7 | . . 11 11 9 Protection 3 | . . . 6 7 Energy Gun 4 | . 6 . 4 8 Energy Cannon 8 | . 3 11 11 . Ballistic Gun 9 | . 16 11 5 . Naked Turns . | . . . . . Heaviest Build 19 | 14 16 16 19 16 Greatest Support 43 | 20 20 33 33 43 Greatest Overweight (x) . | . . . . . Average Overweight (x) . | . . . . . Largest Inventory Capacity 8 | 8 8 8 8 8 Average Capacity 7 | 7 8 8 8 8 Most Carried 8 | 2 8 8 8 7 Average Carried 6 | 1 6 7 7 7 Final Capacity 8 | 8 8 8 8 8 Final Carried 8 | 2 8 8 8 7 Class Distribution -------------------- 67% | Mutant 32% | Scavenger-Mutant Dominant Class ---------------- Mutant | -10/Materials Mutant | -9/Materials Scavenger-Mutant | -9/Storage Scavenger-Mutant | -8/Materials Resources | -11 -10 -9 -9 -8 ----------- Run | Yrd Mat Mat Sto Mat Matter Collected 738 | 238 132 113 243 12 Remotely . | . . . . . Salvage Created 1284 | 78 132 138 936 . Parts 79 | . 11 7 61 . Haulers Intercepted . | . . . . . Recyclers Shooed 6 | . 2 1 3 . Parts Field Recycled . | . . . . . Retrieved Matter . | . . . . . Parts Self-Destructed . | . . . . . Prevented . | . . . . . Kills | -11 -10 -9 -9 -8 ------- Run | Yrd Mat Mat Sto Mat Combat Hostiles Destroyed 18 | . 2 1 15 . Guns 8 | . 2 1 5 . Cannons 10 | . . . 10 . Classes Destroyed 6 | 1 2 1 2 . Builder 2 | . . . 2 . Recycler 5 | 1 . 1 3 . Watcher 4 | . 2 1 1 . Swarmer 1 | . . . 1 . Grunt 9 | . 2 . 7 . Sentry 8 | . . 1 7 . Best Kill Streak 7 | 1 2 1 7 . Combat Bots Only 4 | . 1 1 4 . Max Kills in Single Turn 2 | 1 1 1 2 . Gunslinging . | . . . . . Exploded . | . . . . . Melee . | . . . . . Uniques/NPCs Destroyed . | . . . . . Combat | -11 -10 -9 -9 -8 -------- Run | Yrd Mat Mat Sto Mat Hostile Shots Fired 168 | . 40 9 88 31 Missed 56 | . 19 6 29 2 Damage Taken 1595 | . 295 83 745 472 Core 391 | . 70 . 180 141 Absorbed by Shields . | . . . . . Regen/Repaired (Parts) 18 | . . 18 . . Core Remaining (%) 75 | 100 72 . 55 . Volleys Fired 117 | 5 28 7 70 7 Largest 2 | 2 2 2 2 1 Hottest 100 | 40 85 80 100 40 Shots Fired 185 | 10 46 12 110 7 Gun 118 | 10 46 7 48 7 Cannon 67 | . . 5 62 . Launcher . | . . . . . Special . | . . . . . Kinetic 90 | 10 41 7 32 . Thermal 95 | . 5 5 78 7 Explosive . | . . . . . Electromagnetic . | . . . . . Robot Hit Streak 13 | 2 4 13 8 4 Robot Miss Streak 3 | 1 3 . 3 1 Penetration Max . | . . . . . Secondary Targets 1 | . 1 . . . Max Gunslinging Chain 1 | . 1 . . . Shots Hit Robots 107 | 6 23 12 61 5 Core Hits 52 | 2 10 4 32 4 Critical Kills . | . . . . . Critical Parts Destroyed . | . . . . . Critical Strikes . | . . . . . Melee Attacks . | . . . . . Impact . | . . . . . Slashing . | . . . . . Piercing . | . . . . . Sneak Attacks . | . . . . . Combat Hostiles . | . . . . . Follow-up Attacks . | . . . . . Damage Inflicted 1699 | 73 350 174 1047 55 Guns 855 | 73 330 85 315 52 Cannons 805 | . . 88 717 . Explosions . | . . . . . Melee . | . . . . . Ramming 39 | . 20 1 15 3 Kinetic 659 | 73 301 85 200 . Thermal 1001 | . 29 88 832 52 Explosive . | . . . . . Electromagnetic . | . . . . . Impact . | . . . . . Slashing . | . . . . . Piercing . | . . . . . Highest Corruption . | . . . . . Average Corruption . | . . . . . Corruption Purged . | . . . . . Corruption Blocked . | . . . . . Overload Shots . | . . . . . Overflow Damage . | . . . . . Projectiles . | . . . . . Explosions . | . . . . . Melee . | . . . . . Knockbacks . | . . . . . Impact . | . . . . . Kinetic . | . . . . . Secondary . | . . . . . Self-Inflicted Damage . | . . . . . Shots . | . . . . . Rammed . | . . . . . Targets Rammed 13 | . 3 1 5 4 Kicked 13 | . 3 1 5 4 Crushed . | . . . . . Highest Temperature 403 | . 90 403 397 14 Average Temperature 115 | . 26 132 126 8 Received Heat Transfer 624 | . 183 18 279 144 Effects 7 | . . 1 6 . Shutdowns 1 | . . . 1 . Energy Bleed 1 | . . 1 . . Interference 2 | . . . 2 . Matter Decay 1 | . . . 1 . Short Circuit 1 | . . . 1 . Damage (minor) 1 | . . . 1 . Siege Activations . | . . . . . Robots Corrupted . | . . . . . Combat Hostiles . | . . . . . Parts Fried . | . . . . . Impact Corruptions . | . . . . . Robots Melted . | . . . . . Combat Hostiles . | . . . . . Parts Melted 5 | . . 1 4 . Heat Transferred 2176 | . 74 185 1792 125 Parts Sabotaged . | . . . . . Parts Stolen . | . . . . . Parts Stripped . | . . . . . Power Chain Reactions . | . . . . . Alert | -11 -10 -9 -9 -8 ------- Run | Yrd Mat Mat Sto Mat Peak Influence 440 | 5 72 80 440 181 Initial 152 | . 3 1 33 152 Average 128 | 1 44 23 247 156 Maximum Alert Level 2 | . . . 2 . Low Security (%) 72 | 100 100 100 33 100 Level 1 24 | . . . 59 . Level 2 3 | . . . 7 . Level 3 . | . . . . . Level 4 . | . . . . . Level 5 . | . . . . . High Security . | . . . . . Max Security . | . . . . . Squads Dispatched 2 | . . . 2 . Investigation 1 | . . . 1 . Extermination . | . . . . . Reinforcement 1 | . . . 1 . Assault . | . . . . . Garrison . | . . . . . Intercept . | . . . . . Searches Triggered . | . . . . . Construction Impeded . | . . . . . Haulers Reinforced . | . . . . . Active Scanning Responses . | . . . . . Cargo Convoy Interrupts . | . . . . . Stealth | -11 -10 -9 -9 -8 --------- Run | Yrd Mat Mat Sto Mat Distress Signals 3 | . . . 3 . Communications Jammed . | . . . . . Distress Signals . | . . . . . Times Spotted 35 | . 4 3 23 5 Peak Tracking Total 5 | . 3 1 4 5 Tactical Retreats 1 | . . . 1 . Traps | -11 -10 -9 -9 -8 ------- Run | Yrd Mat Mat Sto Mat Traps Triggered 1 | . . 1 . . Indirectly . | . . . . . Trap Hack Attempts . | . . . . . Triggered . | . . . . . Disarmed . | . . . . . Reprogrammed 6 | . 6 . . . Reused . | . . . . . Traps Extracted . | . . . . . Installed . | . . . . . Triggered . | . . . . . Machines | -11 -10 -9 -9 -8 ---------- Run | Yrd Mat Mat Sto Mat Machines Disabled 2 | . . . 2 . Max in Single Turn 1 | . . . 1 . Machines Repaired . | . . . . . Machines Dismantled . | . . . . . Machines Sabotaged . | . . . . . Overloaded Fab Kills . | . . . . . Hacking | -11 -10 -9 -9 -8 --------- Run | Yrd Mat Mat Sto Mat Machines Accessed 12 | . 5 2 4 1 Terminals 9 | . 3 1 4 1 Fabricators . | . . . . . Repair Stations 1 | . . 1 . . Recycling Units 2 | . 2 . . . Scanalyzers . | . . . . . Garrison Access . | . . . . . Total Hacks 34 | . 14 7 11 2 Successful 21 | . 11 3 6 1 Failed 13 | . 3 4 5 1 Catastrophic 2 | . . 1 . 1 Database Lockouts . | . . . . . Manual . | . . . . . Terminals 25 | . 8 4 11 2 Fabricators . | . . . . . Repair Stations 3 | . . 3 . . Recycling Units 6 | . 6 . . . Scanalyzers . | . . . . . Garrison Access . | . . . . . Terminal Hacks 15 | . 7 1 6 1 Record 4 | . 1 . 3 . Prototype ID Bank 2 | . 1 1 . . Open Door 1 | . . . 1 . Alert Level 2 | . 2 . . . Reprogram Traps 1 | . 1 . . . Dispatch Records 2 | . 1 . 1 . Hauler Manifests 1 | . 1 . . . Zone Layout 2 | . . . 1 1 Fabricator Hacks . | . . . . . Repair Station Hacks 2 | . . 2 . . Scan Component 1 | . . 1 . . Repair 1 | . . 1 . . Recycling Unit Hacks 4 | . 4 . . . Process 1 | . 1 . . . Report Inventory 2 | . 2 . . . Retrieve Matter 1 | . 1 . . . Scanalyzer . | . . . . . Garrison Access Hacks . | . . . . . Unauthorized Hacks . | . . . . . Terminals . | . . . . . Fabricators . | . . . . . Repair Stations . | . . . . . Recycling Units . | . . . . . Scanalyzers . | . . . . . Garrison Access . | . . . . . Data Cores Recovered . | . . . . . Used . | . . . . . Hacking Detections 11 | . 4 2 4 1 Full Trace Events 2 | . . 1 1 . Feedback Events . | . . . . . Feedback Blocked . | . . . . . Robot Schematics Acquired . | . . . . . Robots Built . | . . . . . Authchips . | . . . . . Time . | . . . . . Total Robot Build Rating . | . . . . . Part Schematics Acquired . | . . . . . Parts Built . | . . . . . Authchips . | . . . . . Time . | . . . . . Total Part Build Rating . | . . . . . Parts Repaired 1 | . . 1 . . Time 38 | . . 38 . . Parts Recycled . | . . . . . Recycled Matter 62 | . 62 . . . Retrieved Matter 62 | . 62 . . . Retrieved Components . | . . . . . Parts Scanalyzed . | . . . . . Part Schematics Acquired . | . . . . . Parts Damaged . | . . . . . Bothacking | -11 -10 -9 -9 -8 ------------ Run | Yrd Mat Mat Sto Mat Used RIF Installer . | . . . . . Robots Hacked . | . . . . . Non-combat . | . . . . . Combat . | . . . . . Robot Hacks Applied . | . . . . . Relay Couplers Released . | . . . . . Fabnet Peak Effective % . | . . . . . Robots Rewired . | . . . . . Allies Hacked . | . . . . . Hacks Repelled . | . . . . . Allies | -11 -10 -9 -9 -8 -------- Run | Yrd Mat Mat Sto Mat Total Allies . | . . . . . Largest Group . | . . . . . Highest-Rated Group . | . . . . . Highest-Rated Ally . | . . . . . Total Orders . | . . . . . Ally Attacks . | . . . . . Total Damage . | . . . . . Kills . | . . . . . Allies Corrupted . | . . . . . Allies Melted . | . . . . . Intel | -11 -10 -9 -9 -8 ------- Run | Yrd Mat Mat Sto Mat Robot Analysis Total . | . . . . . Derelict Logs Recovered . | . . . . . Drone Launches . | . . . . . Drone Recoveries . | . . . . . Exploration | -11 -10 -9 -9 -8 ------------- Run | Yrd Mat Mat Sto Mat Turns Passed 1562 | 111 442 272 646 91 Spaces Moved 950 | 76 287 169 359 59 Core 8 | 8 . . . . Treads . | . . . . . Legs 942 | 68 287 169 359 59 Wheels . | . . . . . Hover . | . . . . . Flight . | . . . . . Fastest Speed 50 | 50 120 120 120 120 Average Speed 119 | 112 120 120 120 120 Slowest Speed 120 | 120 120 120 120 120 Overloaded Moves . | . . . . . Propulsion Burnouts . | . . . . . Robots Hopped . | . . . . . Cave-ins Triggered . | . . . . . Exploration Rate (%) 23 | 5 39 15 51 6 Regions Visited 4 Branch Regions 1 Pre-discovered Areas . | . . . . . Known Exits Taken 2 | . . 1 1 . Unknown Exits Taken 2 | 1 1 . . . Scrap Searched . | . . . . . Spaces Dug . | . . . . . Terrain Destroyed . | . . . . . Melee . | . . . . . Projectile . | . . . . . AOE . | . . . . . Terrain Rammed . | . . . . . Walls Destroyed . | . . . . . Machines Disabled . | . . . . . Actions | -11 -10 -9 -9 -8 --------- Run | Yrd Mat Mat Sto Mat Total 1185 | 88 337 225 464 71 Wait 45 | . . 38 7 . Move 946 | 75 286 168 358 59 Hop . | . . . . . Pick Up 15 | 2 7 2 4 . Fast Attach 13 | 6 3 1 3 . Attach 8 | . 1 3 3 1 Detach 1 | . 1 . . . Swap 13 | . 4 3 6 . Drop 14 | . 4 2 8 . Fire 117 | 5 28 7 70 7 Melee . | . . . . . Ram . | . . . . . Kick 13 | . 3 1 5 4 Crush . | . . . . . Escape Stasis . | . . . . . Rewire . | . . . . . Trap . | . . . . . Miscellaneous . | . . . . . Route ------- -11/Scrapyard -10/Materials -9/Materials -9/Storage -8/Materials History --------- Turn | Location | Event 4 | -11/Scrapyard | Discovered new exit (range 15) 112 | -11/Scrapyard | Entered Materials 305 | -10/Materials | Build established: Mutant 467 | -10/Materials | Discovered new exit (range 4) 554 | -10/Materials | Entered another Materials area 554 | -9/Materials | Evolved 2 slots: Propulsion x1, Utility x1 662 | -9/Materials | Repaired Lgt. Nuclear Core 772 | -9/Materials | Discovered new exit (range 7) 791 | -9/Materials | Identified exit to Storage 826 | -9/Materials | Entered Storage 1354 | -9/Storage | Build established: Scavenger-Mutant 1451 | -9/Storage | Discovered new exit (range 16) 1467 | -9/Storage | Identified exit to Materials 1472 | -9/Storage | Entered Materials 1472 | -8/Materials | Evolved 2 slots: Propulsion x1, Utility x1 1563 | -8/Materials | Self-destructed Last Messages --------------- GOAL=ESCAPE T-07 Excavator is excavating. Acquired 12 matter. Connecting with Terminal... >>Layout(Zone) Retrieving Zone 6J layout... Downloaded map data. Penetrated by Slug. Lgt. Armor Plating destroyed. Imp. Aluminum Leg destroyed. Penetrated by Slug. Sml. Laser destroyed. Kicked G-50 Soldier. Penetrated by Slug. Aluminum Leg destroyed. Kicked G-50 Soldier out of the way. Imp. Ion Engine destroyed. Aluminum Leg destroyed. Kicked G-50 Soldier. Critical hit (Burn: +37). Map ----- +----------------------------------------------------+ | ??????????????????????????????????? | | ??????????????????????????????????? | | ??????????????????????????????????? | | ??????????????????????????????????? | | ??????????????????????????????????? | | ??????????????????????????????????? | | ??????????????????????????????????? | | ??????????????################????? | | ??????????????????????# """ #????? | | ??????????????????????# """ #????? | | ??????????????????????# """ #????? | | ??????????????????????# #????? | | ??????????????????????# ! #????? | | ??????????????????????# #????? | | ??????????????????????####+####???? | | ??????????????????????# #???? | | ?????????????########## #???? | | ?????????????# # #???? | | ?????????????# # ######### | | ?????????????# # # # | | ?????????????# # # "" # | | ?????????????# + # "" # | | ?????????????# #h # "T # | | ?????????????+ # + "" # | | ?????????????# # %# "" # | | ?????????????# # g@# # | | ?????????????########## g# """ # | | ?????????????? # #% """ # | | ??????????????""" """ # # """ # | | ??????????????""" """ #g # # | | ??????????????""" """ # ######### | | ?????????????? #a #???????? | | ?????????????? # #???????? | | ?????????????? # # ??????? | | ?????????????? #g # ?????? | | ??????????????###+##### ?????? | | ?????????????? # ?????? | | ?????????????? #???????? | | ?????????????????????? ????????? | | ??????????????????????####????????? | | ??????????????????????????????????? | | ??????????????????????????????????? | | ??????????????????????????????????? | | ??????????????????????????????????? | | ??????????????????????????????????? | | ??????????????????????????????????? | | ??????????????????????????????????? | | ??????????????????????????????????? | | ??????????????????????????????????? | | ??????????????????????????????????? | +----------------------------------------------------+ Best States ------------- Heat Dissipation 31 Energy Generation 14 Energy Capacity 265 Matter Stores 300 Matter Capacity 300 Sight Range 16 Robot Scan Range 14 Terrain Scan Density 10 Armor Coverage 150 Evasion (%) 55 Item Schematics ----------------- None Robot Schematics ------------------ None Fabricated ------------ Nothing Alien Tech Used ----------------- None Achievements -------------- Shopping List Challenges ------------ None Game ------ Seed MiningBiometalStick Manual? 0 Play Time 00:27:01 Cumulative 3.0 hours Start 2024.03.30 @ 22:15:09 End 2024.03.30 @ 22:41:58 Sessions 1 Manual Loads 0 Difficulty Rogue Special Mode None Game No. 6 Rogue 6 Adventurer 0 Explorer 0 Win Type - Total 0 Types 0/0/0/0/0/0/0/0/0 Lore% 3 Gallery% 7 Achievement% 7 Wizard Run 0 Options --------- Layout 1 ASCII 0 Keyboard 0 Movement Arrows Keybinds 0 Fullscreen 1 Font 36/Smallcaps Map View 50x40 Zoom Use 0% Tactical HUD 0 Map Filters NONE Filters NONE Steam 1 RUN: 27279bfa-4abf-47f7-8f11-3566b3649498